Workbook

Sheet Income Tax (for Top Slicing) (hidden)
A1: Existing Position | G1: After new contribution
A2: Allowances
A3: Adjusted Net Income (for allowance purposes) | C3: =#REF! ->  | G3: =A3 -> Adjusted Net Income (for allowance purposes) | I3: =#REF! -> 
A5: Personal Allowance | C5: =#REF! ->  | D5: =C3-#REF! ->  | G5: =A5 -> Personal Allowance | I5: =C5 ->  | J5: =I3-#REF! -> 
A6: Adjustment | C6: =IF(D5<1,0,(IF(D5>(2*#REF!),-C5,MAX(-C5,D5/-2)))) ->  | D6: =SUM(C5:C6) ->  | G6: =A6 -> Adjustment | I6: =IF(J5<1,0,(IF(#REF!>(2*#REF!),-I5,MAX(-I5,J5/-2)))) ->  | J6: =SUM(I5:I6) -> 
A8: Additional Age Allowance | C8: =IF(#REF!="After 5 April 1948",0,#REF!) ->  | D8: =C3-#REF! ->  | G8: =A8 -> Additional Age Allowance | I8: =C8 ->  | J8: =I3-#REF! -> 
A9: Adjustment | C9: =IF(D8<1,0,(IF(E8>(2*#REF!),-C8,MAX(-C8,D8/-2)))) ->  | D9: =SUM(C8:C9) ->  | G9: =A9 -> Adjustment | I9: =IF(J8<1,0,(IF(#REF!>(2*#REF!),-I8,MAX(-I8,J8/-2)))) ->  | J9: =SUM(I8:I9) -> 
A11: Total Allowance | D11: =D6+D9 ->  | G11: =A11 -> Total Allowance | J11: =J6+J9 -> 
A13: Tax Calculation
A15: Income | D15: =#REF!+#REF! ->  | G15: =A15 -> Income | K15: =D15 -> 
A16: Less | G16: =A16 -> Less
A17: Contributions Paid Gross | C17: =#REF! ->  | G17: =A17 -> Contributions Paid Gross | J17: =C17+#REF! -> 
A18: Allowance | C18: ='Income Tax (for Top Slicing)'!D11 ->  | D18: =SUM(C17:C18) ->  | G18: =A18 -> Allowance | J18: =J11 ->  | K18: =SUM(J17:J18) -> 
A19: Taxable Income | D19: =D15-D18 ->  | G19: =A19 -> Taxable Income | K19: =K15-K18 -> 
A22: Income | G22: =A22 -> Income
A23: ='Workings (Top Slicing)'!F7 ->  | B23: @ | C23: =#REF! ->  | D23: =A23*C23 ->  | G23: ='Workings (Top Slicing)'!L7 ->  | H23: @ | I23: =C23 ->  | J23: =G23*I23 -> 
A24: ='Workings (Top Slicing)'!F8 ->  | B24: @ | C24: =#REF! ->  | D24: =A24*C24 ->  | G24: ='Workings (Top Slicing)'!L8 ->  | H24: @ | I24: =C24 ->  | J24: =G24*I24 -> 
A25: ='Workings (Top Slicing)'!F9 ->  | B25: @ | C25: =#REF! ->  | D25: =A25*C25 ->  | E25: =SUM(D23:D25) ->  | G25: ='Workings (Top Slicing)'!L9 ->  | H25: @ | I25: =C25 ->  | J25: =G25*I25 ->  | K25: =SUM(J23:J25) -> 
A26: Dividend | G26: =A26 -> Dividend
A27: ='Workings (Top Slicing)'!F14 ->  | B27: @ | C27: =#REF! ->  | D27: =A27*C27 ->  | G27: ='Workings (Top Slicing)'!L14 ->  | H27: @ | I27: =C27 ->  | J27: =G27*I27 -> 
A28: ='Workings (Top Slicing)'!F15 ->  | B28: @ | C28: =#REF! ->  | D28: =A28*C28 ->  | G28: ='Workings (Top Slicing)'!L15 ->  | H28: @ | I28: =C28 ->  | J28: =G28*I28 -> 
A29: ='Workings (Top Slicing)'!F16 ->  | B29: @ | C29: =#REF! ->  | D29: =A29*C29 ->  | E29: =SUM(D27:D29) ->  | G29: ='Workings (Top Slicing)'!L16 ->  | H29: @ | I29: =C29 ->  | J29: =G29*I29 ->  | K29: =SUM(J27:J29) -> 
A31: Bond Gain | G31: =A31 -> Bond Gain
A32: ='Workings (Top Slicing)'!F19 ->  | B32: @ | C32: 0 | D32: =A32*C32 ->  | G32: ='Workings (Top Slicing)'!L19 ->  | H32: @ | I32: 0 | J32: =G32*I32 -> 
A33: ='Workings (Top Slicing)'!F20 ->  | B33: @ | C33: =C23 ->  | D33: =A33*C33 ->  | G33: ='Workings (Top Slicing)'!L20 ->  | H33: @ | I33: =C33 ->  | J33: =G33*I33 -> 
A34: ='Workings (Top Slicing)'!F21 ->  | B34: @ | C34: =C24 ->  | D34: =A34*C34 ->  | G34: ='Workings (Top Slicing)'!L21 ->  | H34: @ | I34: =C34 ->  | J34: =G34*I34 -> 
A35: ='Workings (Top Slicing)'!F22 ->  | B35: @ | C35: =C25 ->  | D35: =A35*C35 ->  | E35: =SUM(D33:D35) ->  | G35: ='Workings (Top Slicing)'!L22 ->  | H35: @ | I35: =C35 ->  | J35: =G35*I35 ->  | K35: =SUM(J33:J35) -> 
A36: Capital Gain | G36: =A36 -> Capital Gain
A37: ='Workings (Top Slicing)'!F25 ->  | B37: @ | C37: =#REF! ->  | D37: =A37*C37 ->  | G37: ='Workings (Top Slicing)'!L25 ->  | H37: @ | I37: =C37 ->  | J37: =G37*I37 -> 
A38: ='Workings (Top Slicing)'!F26 ->  | B38: @ | C38: =#REF! ->  | D38: =A38*C38 ->  | E38: =SUM(D37:D38) ->  | G38: ='Workings (Top Slicing)'!L26 ->  | H38: @ | I38: =C38 ->  | J38: =G38*I38 ->  | K38: =SUM(J37:J38) -> 
A39: Total Tax Payable | E39: =SUM(E25:E38) ->  | G39: Total Tax Payable | K39: =SUM(K25:K38) -> 
A40: Less Dividend Tax Credit | D40: =#REF! ->  | G40: Less Dividend Tax Credit | J40: =D40 -> 
A41: Onshore Bond Tax Credit | C41: =IF(#REF!="Yes",#REF!*'Income Tax (for Top Slicing)'!C33,0) ->  | G41: Onshore Bond Tax Credit | I41: =C41 -> 
A42: Top Slicing Relief | C42: ='Workings (Top Slicing)'!D50 ->  | G42: Top Slicing Relief | I42: ='Workings (Top Slicing)'!J50 -> 
C43: Restricted to tax on total bond gain. | D43: =MIN(SUM(C41:C42),E35) ->  | E43: =SUM(D40:D43) ->  | I43: Restricted to tax on total bond gain. | J43: =MIN(SUM(I41:I42),K35) ->  | K43: =SUM(J40:J43) -> 
A44: Tax to pay | E44: =MAX(0,E39-E43) ->  | G44: Tax to pay | K44: =MAX(0,K39-K43) -> 
A52: Warnings????

Sheet Inputs
C1: Emergency Tax Tool built by M&G | K1: Tax Year 2024/25 | P1: Dropdowns
P2: Drawdown | Q2: Gross Value | T2: SUICIDE Code
P3: UFPLS | Q3: Net Value | T3: =TODAY() -> 2024-04-05
C4: Input your details | T4: 2025-04-05
C7: Type of Payment | P7: Logic for the question
I8: Please Enter the Value | L8: 0 | R8: =IF(AND(F7=P2,F9=Q2),1,0) -> 0
C9: Gross or Net Value Required | R9: =IF(AND(F7=P2,F9=Q3),2,0) -> 0
R10: =IF(AND(F7=P3,F9=Q2),3,0) -> 0
R11: =IF(AND(F7=P3,F9=Q3),4,0) -> 0
P12: Sum for Logic | R12: =SUM(R8:R11) -> 0
C13: Results | S13: Results pulled through from Tabs
H14: Amount | J14: Tax Rate | L14: Tax Due
S15: 1 | T15: 2 | U15: 3 | V15: 4
S16: =P2 -> Drawdown | T16: =P2 -> Drawdown | U16: =P3 -> UFPLS | V16: =P3 -> UFPLS
C17: Amount Free of Tax | H17: =IF(R12=1,S19,IF(R12=2,T19,IF(R12=3,U19,IF(R12=4,V19,0)))) -> 0 | S17: =Q2 -> Gross Value | T17: =Q3 -> Net Value | U17: =Q2 -> Gross Value | V17: =Q3 -> Net Value
R18: Total | S18: ='Non SRIT - DD'!C2 -> 0 | T18: ='Net DD Income'!E2 -> 0 | U18: ='Non SRIT - UFPLS'!C3 -> 0 | V18: ='Net UFPLS Income'!G2 -> 0
C19: Income Taxable Element | H19: =IF(R12=1,S20,IF(R12=2,T20,IF(R12=3,U20,IF(R12=4,V20,0)))) -> 0 | R19: Tax Free if UFPLS | S19: 0 | T19: 0 | U19: =U18*0.25 -> 0 | V19: =V18*0.25 -> 0
R20: Taxable Element | S20: ='Non SRIT - DD'!C3 -> 0 | T20: =T18 -> 0 | U20: ='Non SRIT - UFPLS'!C4 -> 0 | V20: ='Net UFPLS Income'!G3 -> 0
C21: Total Payment | H21: =H17+H19 -> 0 | R21: Tax Free | S21: ='Non SRIT - DD'!F2 -> 0 | T21: ='Net DD Income'!F22 -> 0 | U21: ='Non SRIT - UFPLS'!F3 -> 0 | V21: ='Net UFPLS Income'!F23 -> 0
R22: Basic rate | S22: ='Non SRIT - DD'!F3 -> 0 | T22: ='Net DD Income'!F23 -> 0 | U22: ='Non SRIT - UFPLS'!F4 -> 0 | V22: ='Net UFPLS Income'!F24 -> 0
C23: Income Tax | R23: Higher rate | S23: ='Non SRIT - DD'!F4 -> 0 | T23: ='Net DD Income'!F24 -> 0 | U23: ='Non SRIT - UFPLS'!F5 -> 0 | V23: ='Net UFPLS Income'!F25 -> 0
R24: Additional Rate | S24: ='Non SRIT - DD'!F5 -> 0 | T24: ='Net DD Income'!F25 -> 0 | U24: ='Non SRIT - UFPLS'!F6 -> 0 | V24: ='Net UFPLS Income'!F26 -> 0
C25: Tax Free | H25: =IF(R12=1,S21,IF(R12=2,T21,IF(R12=3,U21,IF(R12=4,V21,0)))) -> 0 | J25: 0 | L25: =H25*J25 -> 0
C27: Basic Rate | H27: =IF(R12=1,S22,IF(R12=2,T22,IF(R12=3,U22,IF(R12=4,V22,0)))) -> 0 | J27: 0.2 | L27: =H27*J27 -> 0
R28: Parameters
C29: Higher Rate | H29: =IF(R12=1,S23,IF(R12=2,T23,IF(R12=3,U23,IF(R12=4,V23,0)))) -> 0 | J29: 0.4 | L29: =H29*J29 -> 0 | Q29: Pers Allow | R29: 12579 | S29: Use Block ten
Q30: Div by 12 | R30: =R29/12 -> 1048.25
C31: Additional Rate | H31: =IF(R12=1,S24,IF(R12=2,T24,IF(R12=3,U24,IF(R12=4,V24,0)))) -> 0 | J31: 0.45 | L31: =H31*J31 -> 0
C34: Total Tax | L34: =SUM(L25:L33) -> 0
U35: Only yellow boxes need updated
C36: Net amount after Emergency Tax is applied | H36: =H21-L34 -> 0 | Q36: Income Tax rates and taxable bands
Q37: Personal Allowance | U37: =R29 -> 12579 | V37: =ROUNDUP(U37/12,0) -> 1049
Q38: Basic rate | R38: 0.2 | S38: 0 | T38: to | U38: 37700 | V38: =ROUNDUP(U38/12,0) -> 3142
Q39: Higher rate | R39: 0.4 | S39: =U38+1 -> 37701 | T39: to | U39: 125140 | V39: =ROUNDUP((U39-U38)/12,0) -> 7287
C40: This calculator is designed to give a general demonstration of how the operation of Emergency Tax has an effect on the payment of an Uncrystallised Fund Pension Lump Sum (UFPLS) and the first payment from drawdown. It does not take into account all the possible individual circumstances that may impact on the outcome. It should not be taken as offering advice or any recommendation. The calculator assumes 25% of the UFPLS is entitled to be paid tax-free, however there are limited circumstances where this is not the case and professional advice should be sought to confirm individual treatment. For drawdown the whole payment will be taxable. This calculator does not consider the Scottish Rate of Income Tax as emergency tax is based on UK rates. Please note, this tool will cease to operate at the end of the tax year displayed above. The information in this modeller is based on our understanding as at March 2024 of current taxation, legislation and HM Revenue & Customs practice all of which is subject to change without notice and before every care has been taken as to its accuracy, but it must be appreciated that neither Prudential nor its representatives can accept any responsibility for loss, however caused, suffered by any person who has acted or refrained from acting as a result of material contained in this calculator. | Q40: Additional rate | R40: 0.45 | S40: Over | U40: =U39 -> 125140 | V40: =U40/12 -> 10428.33333

Sheet Inputs Printer Friendly
C1: Emergency Tax Tool built by M&G | K1: =Inputs!K1 -> Tax Year 2024/25
C4: =Inputs!C4 -> Input your details
C7: =Inputs!C7 -> Type of Payment | F7: =Inputs!F7 -> 0
I8: =Inputs!I8 -> Please Enter the Value | L8: =Inputs!L8 -> 0
C9: =Inputs!C9 -> Gross or Net Value Required | F9: =Inputs!F9 -> 0
C13: Results
H14: Amount | J14: Tax Rate | L14: Tax Due
C17: =Inputs!C17 -> Amount Free of Tax | H17: =Inputs!H17 -> 0
C19: =Inputs!C19 -> Income Taxable Element | H19: =Inputs!H19 -> 0
C21: =Inputs!C21 -> Total Payment | H21: =Inputs!H21 -> 0
C23: =Inputs!C23 -> Income Tax
C25: =Inputs!C25 -> Tax Free | H25: =Inputs!H25 -> 0 | J25: =Inputs!J25 -> 0 | L25: =Inputs!L25 -> 0
C27: =Inputs!C27 -> Basic Rate | H27: =Inputs!H27 -> 0 | J27: =Inputs!J27 -> 0.2 | L27: =Inputs!L27 -> 0
C29: =Inputs!C29 -> Higher Rate | H29: =Inputs!H29 -> 0 | J29: =Inputs!J29 -> 0.4 | L29: =Inputs!L29 -> 0
C31: =Inputs!C31 -> Additional Rate | H31: =Inputs!H31 -> 0 | J31: =Inputs!J31 -> 0.45 | L31: =Inputs!L31 -> 0
C34: =Inputs!C34 -> Total Tax | L34: =Inputs!L34 -> 0
C36: =Inputs!C36 -> Net amount after Emergency Tax is applied | H36: =Inputs!H36 -> 0
C40: =Inputs!C40 -> This calculator is designed to give a general demonstration of how the operation of Emergency Tax has an effect on the payment of an Uncrystallised Fund Pension Lump Sum (UFPLS) and the first payment from drawdown. It does not take into account all the possible individual circumstances that may impact on the outcome. It should not be taken as offering advice or any recommendation. The calculator assumes 25% of the UFPLS is entitled to be paid tax-free, however there are limited circumstances where this is not the case and professional advice should be sought to confirm individual treatment. For drawdown the whole payment will be taxable. This calculator does not consider the Scottish Rate of Income Tax as emergency tax is based on UK rates. Please note, this tool will cease to operate at the end of the tax year displayed above. The information in this modeller is based on our understanding as at March 2024 of current taxation, legislation and HM Revenue & Customs practice all of which is subject to change without notice and before every care has been taken as to its accuracy, but it must be appreciated that neither Prudential nor its representatives can accept any responsibility for loss, however caused, suffered by any person who has acted or refrained from acting as a result of material contained in this calculator.

Sheet Non SRIT - UFPLS (hidden)
B2: Tax Year | C2: 2020/21
B3: UFPLS (gross) | C3: =Inputs!L8 -> 0 | E3: Tax Free | F3: =F25 -> 0 | G3: @ | H3: 0 | I3: =F3*H3 -> 0
B4: Taxable element | C4: =C3*0.75 -> 0 | E4: Basic rate | F4: =F26 -> 0 | G4: @ | H4: 0.2 | I4: =F4*H4 -> 0
E5: Higher rate | F5: =F27 -> 0 | G5: @ | H5: 0.4 | I5: =F5*H5 -> 0
E6: Additional Rate | F6: =F28 -> 0 | G6: @ | H6: 0.45 | I6: =F6*H6 -> 0
I7: =SUM(I3:I6) -> 0 | Q7: *
I8: *may be small differences due to rounding
C10: INTERNAL USE ONLY | F10: Net Income | I10: =C3-I7 -> 0
F12: Tax Rounded | I12: =I7 -> 0
F13: Net Income Rounded | I13: =I10 -> 0
B20: Existing Position
C22: Do not alter - parameter in inputs | E22: Taxable | F22: =C4 -> 0
C24: Allowances | D24: Still to tax | E24: Allowance balance
B25: Tax Free | C25: =Inputs!V37 -> 1049 | D25: =F22 -> 0 | E25: =MAX(0,C25-F25) -> 1049 | F25: =IF(F22<C25,F22,C25) -> 0
B26: Basic Rate | C26: =Inputs!V38 -> 3142 | D26: =F22-F25 -> 0 | E26: =MAX(0,C26-F26) -> 3142 | F26: =MIN(D26,C26) -> 0
B27: Higher Rate | C27: =Inputs!V39 -> 7287 | D27: =MAX(0,D26-F26) -> 0 | E27: =MAX(0,C27-F27) -> 7287 | F27: =MIN(D27,C27) -> 0
B28: Additional Rate > | D28: =MAX(0,D27-F27) -> 0 | E28: 0 | F28: =D28 -> 0

Sheet Net UFPLS Income (hidden)
B1: Net Figure Required | G1: =Inputs!L8 -> 0
B2: Gross UFPLS Needed | G2: =VLOOKUP("use",G9:H12,2,FALSE) -> 0
B3: Taxable | G3: =G2*0.75 -> 0 | I3: =G2-G1 -> 0
I4: =I3 -> 0
B6: Do not alter - parameter in inputs
B8: Band | C8: Band Less Tax | D8: TFC | E8: Net Income Full band | F8: Net Income Cumulative Full Band | G8: Logic for usage | H8: Calculated Gross Figure
A9: NRT | B9: =Inputs!V37 -> 1049 | C9: ='Net DD Income'!C9 -> 1049 | D9: =C9/3 -> 349.6666667 | E9: =C9+D9 -> 1398.666667 | F9: =E9 -> 1398.666667 | G9: =IF(G1<=E9,"Use","Don't Use") -> Use | H9: =G1 -> 0
A10: BRT | B10: =Inputs!V38 -> 3142 | C10: ='Net DD Income'!C10 -> 2513.6 | D10: =B10/3 -> 1047.333333 | E10: =C10+D10 -> 3560.933333 | F10: =F9+E10 -> 4959.6 | G10: =IF(AND(G1>F9,G1<=F10, G1<F11),"use","Don't use") -> Don't use | H10: =((G1-F9)/0.85)+E9 -> -246.8235294
A11: HRT | B11: =Inputs!V39 -> 7287 | C11: ='Net DD Income'!C11 -> 4372.2 | D11: =B11/3 -> 2429 | E11: =C11+D11 -> 6801.2 | F11: =F10+E11 -> 11760.8 | G11: =IF(AND(G1>F10,G1<=F11, G1<F12),"use","Don't use") -> Don't use | H11: =((G1-F10)/0.7)+B10+B9+D9+D10 -> -1497.142857
A12: ART | B12: 2000000000 | C12: ='Net DD Income'!C12 -> 1100000000000 | D12: =C12/3 -> 3.666666667e+11 | E12: =C12+E11 -> 1.100000007e+12 | F12: =F11+E12 -> 1100000018562 | G12: =IF(G1>F11,"use","Don't use") -> Don't use | H12: =((G1-F11)/0.6625)+B11+B10+B9+D11+D10+D9 -> -2448.150943
C20: Do not alter - parameter in inputs | E20: Taxable | F20: =G3 -> 0
C22: Allowances | D22: Still to tax | E22: Allowance balance
B23: Tax Free | C23: =B9 -> 1049 | D23: =F20 -> 0 | E23: =MAX(0,C23-F23) -> 1049 | F23: =IF(F20<C23,F20,C23) -> 0
B24: Basic Rate | C24: =B10 -> 3142 | D24: =F20-F23 -> 0 | E24: =MAX(0,C24-F24) -> 3142 | F24: =MIN(D24,C24) -> 0
B25: Higher Rate | C25: 7287 | D25: =MAX(0,D24-F24) -> 0 | E25: =MAX(0,C25-F25) -> 7287 | F25: =MIN(D25,C25) -> 0
B26: Additional Rate > | D26: =MAX(0,D25-F25) -> 0 | E26: 0 | F26: =D26 -> 0

Sheet Non SRIT - DD (hidden)
B1: Tax Year | C1: 2019/20
B2: DD (gross) | C2: =Inputs!L8 -> 0 | E2: Tax Free | F2: =F25 -> 0 | G2: @ | H2: ='Non SRIT - UFPLS'!H3 -> 0 | I2: =F2*H2 -> 0
B3: Taxable element | C3: =C2 -> 0 | E3: Basic rate | F3: =F26 -> 0 | G3: @ | H3: ='Non SRIT - UFPLS'!H4 -> 0.2 | I3: =F3*H3 -> 0
E4: Higher rate | F4: =F27 -> 0 | G4: @ | H4: ='Non SRIT - UFPLS'!H5 -> 0.4 | I4: =F4*H4 -> 0
E5: Additional Rate | F5: =F28 -> 0 | G5: @ | H5: ='Non SRIT - UFPLS'!H6 -> 0.45 | I5: =F5*H5 -> 0
I6: =SUM(I2:I5) -> 0
I7: *may be small differences due to rounding | Q7: *
F9: Net Income | I9: =C2-I6 -> 0
F11: Tax Rounded | I11: =I6 -> 0
F12: Net Income Rounded | I12: =I9 -> 0
B20: Existing Position
C22: Do not alter - parameter in inputs | E22: Taxable | F22: =C3 -> 0
C24: Allowances | D24: Still to tax | E24: Allowance balance
B25: Tax Free | C25: =Inputs!V37 -> 1049 | D25: =F22 -> 0 | E25: =MAX(0,C25-F25) -> 1049 | F25: =IF(F22<C25,F22,C25) -> 0
B26: Basic Rate | C26: =Inputs!V38 -> 3142 | D26: =F22-F25 -> 0 | E26: =MAX(0,C26-F26) -> 3142 | F26: =MIN(D26,C26) -> 0
B27: Higher Rate | C27: =Inputs!V39 -> 7287 | D27: =MAX(0,D26-F26) -> 0 | E27: =MAX(0,C27-F27) -> 7287 | F27: =MIN(D27,C27) -> 0
B28: Additional Rate > | D28: =MAX(0,D27-F27) -> 0 | E28: 0 | F28: =D28 -> 0

Sheet Net DD Income (hidden)
B1: Net Figure Required | E1: =Inputs!L8 -> 0
B2: Gross DD Income Needed | E2: =VLOOKUP("use",E9:F12,2,FALSE) -> 0
G3: =E2-E1 -> 0
G4: =G3 -> 0
B6: Do not alter - parameter in inputs
B8: Band | C8: Net Income Full band | D8: Net Income Cumulative Full Band | E8: Logic for usage | F8: Calculated Gross Figure
A9: NRT | B9: =Inputs!V37 -> 1049 | C9: =B9*(1-'Non SRIT - UFPLS'!H3) -> 1049 | D9: =C9 -> 1049 | E9: =IF(E1<=D9,"Use","Don't Use") -> Use | F9: =E1 -> 0
A10: BRT | B10: =Inputs!V38 -> 3142 | C10: =B10*(1-'Non SRIT - UFPLS'!H4) -> 2513.6 | D10: =C10+C9 -> 3562.6 | E10: =IF(AND(E1>D9,E1<=D10, E1<D11),"use","Don't use") -> Don't use | F10: =((E1-D9)/0.8)+D9 -> -262.25
A11: HRT | B11: =Inputs!V39 -> 7287 | C11: =B11*(1-'Non SRIT - UFPLS'!H5) -> 4372.2 | D11: =C11+D10 -> 7934.8 | E11: =IF(AND(E1>D10,E1<=D11, E1<D12),"use","Don't use") -> Don't use | F11: =((E1-C10-C9)/0.6)+B10+B9 -> -1746.666667
A12: ART | B12: 2000000000000 | C12: =B12*(1-'Non SRIT - UFPLS'!H6) -> 1100000000000 | D12: =C12+D11 -> 1.100000008e+12 | E12: =IF(E1>D11,"use","Don't use") -> Don't use | F12: =((E1-D11)/0.55)+B11+B10+B9 -> -2948.909091
C19: Do not alter - parameter in inputs | E19: Taxable | F19: =E2 -> 0
C21: Allowances | D21: Still to tax | E21: Allowance balance
B22: Tax Free | C22: =B9 -> 1049 | D22: =F19 -> 0 | E22: =MAX(0,C22-F22) -> 1049 | F22: =IF(F19<C22,F19,C22) -> 0
B23: Basic Rate | C23: =B10 -> 3142 | D23: =F19-F22 -> 0 | E23: =MAX(0,C23-F23) -> 3142 | F23: =MIN(D23,C23) -> 0
B24: Higher Rate | C24: =B11 -> 7287 | D24: =MAX(0,D23-F23) -> 0 | E24: =MAX(0,C24-F24) -> 7287 | F24: =MIN(D24,C24) -> 0
B25: Additional Rate > | D25: =MAX(0,D24-F24) -> 0 | E25: 0 | F25: =D25 -> 0

Sheet Workings (Top Slicing) (hidden)
B1: Existing Position | H1: After new contribution
B3: Taxable Income | F3: =#REF! ->  | H3: Taxable Income | L3: =F3 -> 
C5: Allowances | D5: Still to tax | E5: Allowance balance | I5: Allowances | J5: Still to tax | K5: Allowance balance
B6: Tax Free | C6: ='Income Tax (for Top Slicing)'!D18 ->  | D6: =F3 ->  | E6: =MAX(0,C6-F6) ->  | F6: =IF(F3<C6,F3,C6) ->  | H6: TaxFree | I6: ='Income Tax (for Top Slicing)'!K18 ->  | J6: =L3 ->  | K6: =MAX(0,I6-L6) ->  | L6: =IF(L3<I6,L3,I6) -> 
B7: Basic Rate | C7: =#REF!+#REF! ->  | D7: =F3-F6 ->  | E7: =MAX(0,C7-F7) ->  | F7: =MIN(D7,C7) ->  | H7: Basic Rate | I7: =C7+#REF! ->  | J7: =L3-L6 ->  | K7: =MAX(0,I7-L7) ->  | L7: =MIN(J7,I7) -> 
B8: Higher Rate | C8: =#REF! ->  | D8: =MAX(0,D7-F7) ->  | E8: =MAX(0,C8-F8) ->  | F8: =MIN(D8,C8) ->  | H8: Higher Rate | I8: =C8 ->  | J8: =MAX(0,J7-L7) ->  | K8: =MAX(0,I8-L8) ->  | L8: =MIN(J8,I8) -> 
B9: Additional Rate > | C9: =#REF!+#REF! ->  | D9: =MAX(0,D8-F8) ->  | E9: 0 | F9: =D9 ->  | H9: Additional Rate > | I9: =C9+#REF! ->  | J9: =J8-L8 ->  | K9: 0 | L9: =J9 -> 
B12: Dividend | F12: =#REF! ->  | H12: Dividend | L12: =F12 -> 
B13: Tax Free | C13: =MAX(0,E6) ->  | D13: =F12 ->  | E13: =MIN(E6,E6-F13) ->  | F13: =MIN(C13,D13) ->  | H13: Tax Free | I13: =MAX(0,K6) ->  | J13: =L12 ->  | K13: =MIN(K6,K6-L13) ->  | L13: =MIN(I13,J13) -> 
B14: Basic Rate | C14: =MAX(0,E7) ->  | D14: =D13-F13 ->  | E14: =MIN(E7,E7-F14) ->  | F14: =MIN(C14,D14) ->  | H14: Basic Rate | I14: =MAX(0,K7) ->  | J14: =L12-L13 ->  | K14: =MIN(K7,K7-L14) ->  | L14: =MIN(I14,J14) -> 
B15: Higher Rate | C15: =MAX(0,E8) ->  | D15: =MAX(0,D14-F14) ->  | E15: =MAX(0,C15-D15) ->  | F15: =MIN(D15,C15) ->  | H15: Higher Rate | I15: =MAX(0,K8) ->  | J15: =J14-L14 ->  | K15: =MAX(0,I15-J15) ->  | L15: =MIN(J15,I15) -> 
B16: Additional Rate > | C16: =MAX(E15,0) ->  | D16: =MAX(0,D15-F15) ->  | E16: 0 | F16: =D16 ->  | H16: Additional Rate > | I16: =MAX(K15,0) ->  | J16: =J15-L15 ->  | K16: 0 | L16: =J16 -> 
B18: Bond Gain | F18: =#REF! ->  | H18: Bond Gain | L18: =F18 -> 
B19: Tax Free | C19: =MAX(0,E13) ->  | D19: =MAX(0,F18) ->  | E19: =MAX(0,MIN(E13,E13-F19)) ->  | F19: =MIN(D19,C19) ->  | H19: TaxFree | I19: =MAX(0,K13) ->  | J19: =MAX(0,L18) ->  | K19: =MAX(0,MIN(K13,K13-L19)) ->  | L19: =MIN(J19,I19) -> 
B20: Basic Rate | C20: =MAX(0,E14) ->  | D20: =MAX(0,D19-F19) ->  | E20: =MIN(E14,E14-F20) ->  | F20: =MIN(D20,C20) ->  | H20: Basic Rate | I20: =MAX(0,K14) ->  | J20: =L18-L19 ->  | K20: =MIN(K14,K14-L20) ->  | L20: =MIN(J20,I20) -> 
B21: Higher Rate | C21: =MAX(0,E15) ->  | D21: =MAX(0,D20-F20) ->  | E21: =MAX(0,C21-D21) ->  | F21: =MIN(D21,C21) ->  | H21: Higher Rate | I21: =MAX(0,K15) ->  | J21: =J20-L20 ->  | K21: =MAX(0,I21-J21) ->  | L21: =MIN(J21,I21) -> 
B22: Additional Rate > | C22: =MAX(E21,0) ->  | D22: =MAX(0,D21-F21) ->  | E22: 0 | F22: =D22 ->  | H22: Additional Rate > | I22: =MAX(K21,0) ->  | J22: =J21-L21 ->  | K22: 0 | L22: =J22 -> 
B24: Capital Gain | F24: =#REF! ->  | H24: Capital Gain | L24: =F24 -> 
B25: Basic Rate | C25: =MAX(0,E20) ->  | D25: =F24 ->  | F25: =MIN(D25,C25) ->  | H25: Basic Rate | I25: =MAX(0,K20) ->  | J25: =L24 ->  | L25: =MIN(J25,I25) -> 
B26: Higher Rate > | C26: =MAX(0,D25-C25) ->  | D26: =MAX(0,D25-F25) ->  | F26: =D26 ->  | H26: Higher Rate | I26: =MAX(0,J25-I25) ->  | J26: =MAX(0,J25-L25) ->  | L26: =J26 -> 
B30: =#REF! ->  | C30: =#REF! ->  | H30: =B30 ->  | I30: =C30 -> 
B32: Tax Free | C32: =F6+F13+F41 ->  | H32: =B32 -> Tax Free | I32: =L6+L13+L41 -> 
B33: Basic Rate | C33: =F7+F14+F42+F25 ->  | H33: =B33 -> Basic Rate | I33: =L7+L14+L42+L25 -> 
B34: Higher Rate | C34: =F8+F15+F43+F26 ->  | H34: =B34 -> Higher Rate | I34: =L8+L15+L43+L26 -> 
B35: Additional Rate > | C35: =F9+F16+F44+F28 ->  | H35: =B35 -> Additional Rate > | I35: =L9+L16+L44+L28 -> 
C37: =MIN(C34,C34-((C34-C6)/2)) -> 
B40: Bond Slice | C40: Allowances | D40: Still to tax | E40: Allowance balance | F40: =#REF! ->  | H40: =B40 -> Bond Slice | I40: Allowances | J40: Still to tax | K40: Allowance balance | L40: =F40 -> 
B41: =B19 -> Tax Free | D41: =F40 ->  | E41: =E19 ->  | F41: =MIN(C41,D41) ->  | H41: =H19 -> TaxFree | J41: =L40 ->  | K41: =K19 ->  | L41: =MIN(I41,J41) -> 
B42: Basic Rate | D42: =MAX(0,D41-F41) ->  | E42: =E20 ->  | F42: =MIN(C42,D42) ->  | H42: Basic Rate | J42: =MAX(0,J41-L41) ->  | K42: =K20 ->  | L42: =MIN(I42,J42) -> 
B43: Higher Rate | D43: =MAX(0,D42-F42) ->  | E43: =E21 ->  | F43: =MIN(C43,D43) ->  | H43: Higher Rate | J43: =MAX(0,J42-L42) ->  | K43: =K21 ->  | L43: =MIN(I43,J43) -> 
B44: Additional Rate > | D44: =MAX(0,D43-F43) ->  | E44: =E22 -> 0 | F44: =MIN(C44,D44) ->  | H44: Additional Rate > | J44: =MAX(0,J43-L43) ->  | K44: =K22 -> 0 | L44: =MIN(I44,J44) -> 
B47: Additional tax on full gain | D47: =((F21*'Income Tax (for Top Slicing)'!C33)+('Workings (Top Slicing)'!F22*('Income Tax (for Top Slicing)'!C35-'Income Tax (for Top Slicing)'!C33))) ->  | H47: Additional tax on full gain | J47: =((L21*'Income Tax (for Top Slicing)'!I33)+('Workings (Top Slicing)'!L22*('Income Tax (for Top Slicing)'!I35-'Income Tax (for Top Slicing)'!I33))) -> 
B48: Tax on slice | C48: =((F43*'Income Tax (for Top Slicing)'!C33)+('Workings (Top Slicing)'!F44*('Income Tax (for Top Slicing)'!C35-'Income Tax (for Top Slicing)'!C33))) ->  | H48: Tax on slice | I48: =((L43*'Income Tax (for Top Slicing)'!I33)+('Workings (Top Slicing)'!L44*('Income Tax (for Top Slicing)'!I35-'Income Tax (for Top Slicing)'!I33))) -> 
B49: No. of slice years | C49: =#REF! ->  | D49: =C48*C49 ->  | H49: No. of slice years | I49: =C49 ->  | J49: =I48*I49 -> 
B50: Top Slice Relief | D50: =D47-D49 ->  | H50: Top Slice Relief | J50: =J47-J49 -> 
F52: =F21*0.2 -> 
F53: =F22*0.3 -> 
